[Event "Late-Titled-Tuesday-Blitz-July-09-2024"]
[Site "Chess.com"]
[Date "2024.07.09"]
[Round "5"]
[White "tandercat"]
[Black "Nbk90"]
[Result "1-0"]
[WhiteElo "1935"]
[BlackElo "2246"]
[TimeControl "180+1"]
[EndTime "14:51:13 PDT"]
[Termination "tandercat won by resignation"]

1. d4 {[%clk 0:03:00.9]} 1... d5 {[%clk 0:02:57.2]} 2. c4 {[%clk 0:03:00.1]}
2... c6 {[%clk 0:02:51.5]} 3. cxd5 {[%clk 0:02:59]} 3... cxd5 {[%clk 0:02:51.4]}
4. Nc3 {[%clk 0:02:59.9]} 4... Nf6 {[%clk 0:02:50.9]} 5. Bf4 {[%clk 0:03:00.1]}
5... Nc6 {[%clk 0:02:50.9]} 6. e3 {[%clk 0:03:00.2]} 6... a6 {[%clk 0:02:51]} 7.
Bd3 {[%clk 0:02:56.3]} 7... e6 {[%clk 0:02:48]} 8. Rc1 {[%clk 0:02:56]} 8... Bd6
{[%clk 0:02:47.4]} 9. Bxd6 {[%clk 0:02:55.2]} 9... Qxd6 {[%clk 0:02:47.8]} 10.
f4 {[%clk 0:02:55.7]} 10... O-O {[%clk 0:02:47.1]} 11. Nf3 {[%clk 0:02:55.9]}
11... b5 {[%clk 0:02:42.1]} 12. Ne5 {[%clk 0:02:55.3]} 12... Bb7 {[%clk
0:02:41.1]} 13. O-O {[%clk 0:02:46.3]} 13... Rac8 {[%clk 0:02:38.1]} 14. g4
{[%clk 0:02:43.3]} 14... Nd7 {[%clk 0:02:34.7]} 15. g5 {[%clk 0:02:29.2]} 15...
Ndxe5 {[%clk 0:02:10.2]} 16. fxe5 {[%clk 0:02:22.7]} 16... Qe7 {[%clk
0:02:07.4]} 17. Bxh7+ {[%clk 0:02:05.1]} 17... Kxh7 {[%clk 0:02:01.1]} 18. Qh5+
{[%clk 0:02:06]} 18... Kg8 {[%clk 0:01:59.8]} 19. Rf3 {[%clk 0:02:03]} 19... f6
{[%clk 0:01:33.1]} 20. g6 {[%clk 0:02:00.7]} 1-0

[Event "Late-Titled-Tuesday-Blitz-July-09-2024"]
[Site "Chess.com"]
[Date "2024.07.09"]
[Round "5"]
[White "Os55555"]
[Black "cthake"]
[Result "1-0"]
[WhiteElo "2312"]
[BlackElo "1828"]
[TimeControl "180+1"]
[EndTime "14:51:16 PDT"]
[Termination "Os55555 won by resignation"]

1. e4 {[%clk 0:03:00.9]} 1... c5 {[%clk 0:02:58.1]} 2. Nc3 {[%clk 0:03:00.6]}
2... a6 {[%clk 0:02:56.8]} 3. Nf3 {[%clk 0:02:58.4]} 3... e6 {[%clk 0:02:56.8]}
4. a4 {[%clk 0:02:58.1]} 4... g6 {[%clk 0:02:54.3]} 5. g3 {[%clk 0:02:55.5]}
5... Bg7 {[%clk 0:02:54.4]} 6. Bg2 {[%clk 0:02:54.2]} 6... d6 {[%clk 0:02:54.3]}
7. d3 {[%clk 0:02:54.6]} 7... Nc6 {[%clk 0:02:54.4]} 8. O-O {[%clk 0:02:54]}
8... Nge7 {[%clk 0:02:54.5]} 9. Ng5 {[%clk 0:02:52.6]} 9... O-O {[%clk
0:02:53.6]} 10. f4 {[%clk 0:02:52.7]} 10... h6 {[%clk 0:02:52.4]} 11. Nh3 {[%clk
0:02:52.7]} 11... Nd4 {[%clk 0:02:51.7]} 12. Ne2 {[%clk 0:02:49.8]} 12... Rb8
{[%clk 0:02:49]} 13. Nxd4 {[%clk 0:02:43.1]} 13... Bxd4+ {[%clk 0:02:47.8]} 14.
Kh1 {[%clk 0:02:43.4]} 14... Bg7 {[%clk 0:02:46.4]} 15. a5 {[%clk 0:02:36.3]}
15... b5 {[%clk 0:02:43]} 16. axb6 {[%clk 0:02:35.4]} 16... Qxb6 {[%clk
0:02:42.4]} 17. c3 {[%clk 0:02:34.9]} 17... d5 {[%clk 0:02:35.3]} 18. Nf2 {[%clk
0:02:22.8]} 18... Bb7 {[%clk 0:02:28.5]} 19. Qg4 {[%clk 0:02:18.4]} 19... Kh7
{[%clk 0:02:19.2]} 20. Qh4 {[%clk 0:02:04.6]} 20... a5 {[%clk 0:02:01.3]} 21.
Qxe7 {[%clk 0:02:01.1]} 21... dxe4 {[%clk 0:01:58.1]} 22. Nxe4 {[%clk
0:01:58.4]} 22... c4 {[%clk 0:01:56.7]} 23. dxc4 {[%clk 0:01:48.9]} 23... Rbe8
{[%clk 0:01:47.5]} 24. Qc5 {[%clk 0:01:45.9]} 24... Qa6 {[%clk 0:01:41.1]} 25.
Rxa5 {[%clk 0:01:40.3]} 1-0

[Event "Late-Titled-Tuesday-Blitz-July-09-2024"]
[Site "Chess.com"]
[Date "2024.07.09"]
[Round "5"]
[White "JoshWeinstein"]
[Black "Sanyura"]
[Result "0-1"]
[WhiteElo "2451"]
[BlackElo "2681"]
[TimeControl "180+1"]
[EndTime "14:51:32 PDT"]
[Termination "Sanyura won by resignation"]

1. e4 {[%clk 0:03:00.9]} 1... c6 {[%clk 0:02:37.4]} 2. Nc3 {[%clk 0:02:59.4]}
2... d5 {[%clk 0:02:37.7]} 3. Nf3 {[%clk 0:02:54.8]} 3... Bg4 {[%clk 0:02:36.7]}
4. h3 {[%clk 0:02:51]} 4... Bxf3 {[%clk 0:02:34.5]} 5. Qxf3 {[%clk 0:02:51.8]}
5... e6 {[%clk 0:02:35.2]} 6. e5 {[%clk 0:02:50.3]} 6... c5 {[%clk 0:02:32.2]}
7. Bb5+ {[%clk 0:02:46.6]} 7... Nc6 {[%clk 0:02:31.9]} 8. Bxc6+ {[%clk
0:02:43.6]} 8... bxc6 {[%clk 0:02:31.9]} 9. O-O {[%clk 0:02:43.7]} 9... Ne7
{[%clk 0:02:31.6]} 10. d3 {[%clk 0:02:41.6]} 10... Ng6 {[%clk 0:02:31.5]} 11.
Qg3 {[%clk 0:02:39.9]} 11... Be7 {[%clk 0:02:28.3]} 12. f4 {[%clk 0:02:35.1]}
12... O-O {[%clk 0:02:17.5]} 13. f5 {[%clk 0:02:29.5]} 13... exf5 {[%clk
0:02:17.1]} 14. Rxf5 {[%clk 0:02:30.4]} 14... Rb8 {[%clk 0:02:03.1]} 15. b3
{[%clk 0:02:28]} 15... c4 {[%clk 0:02:02.7]} 16. dxc4 {[%clk 0:02:19.7]} 16...
dxc4 {[%clk 0:02:00.5]} 17. Be3 {[%clk 0:02:18.6]} 17... cxb3 {[%clk 0:01:37.1]}
18. axb3 {[%clk 0:02:18]} 18... Qd7 {[%clk 0:00:47.6]} 19. Rxa7 {[%clk
0:02:13.4]} 19... Qxf5 {[%clk 0:00:45.6]} 0-1

[Event "Late-Titled-Tuesday-Blitz-July-09-2024"]
[Site "Chess.com"]
[Date "2024.07.09"]
[Round "5"]
[White "orkinyo12345"]
[Black "simaopdias"]
[Result "1-0"]
[WhiteElo "2475"]
[BlackElo "2196"]
[TimeControl "180+1"]
[EndTime "14:51:58 PDT"]
[Termination "orkinyo12345 won by resignation"]

1. c4 {[%clk 0:02:59.3]} 1... e6 {[%clk 0:02:59.9]} 2. Nf3 {[%clk 0:02:59.4]}
2... d5 {[%clk 0:03:00.7]} 3. e3 {[%clk 0:02:59]} 3... Be7 {[%clk 0:03:01.3]} 4.
Nc3 {[%clk 0:02:58.9]} 4... Nf6 {[%clk 0:03:01.9]} 5. d4 {[%clk 0:02:58.7]} 5...
O-O {[%clk 0:03:02]} 6. Bd3 {[%clk 0:02:59.4]} 6... Nbd7 {[%clk 0:02:58.3]} 7.
O-O {[%clk 0:02:59.1]} 7... c5 {[%clk 0:02:58.6]} 8. cxd5 {[%clk 0:02:59.2]}
8... exd5 {[%clk 0:02:57.1]} 9. b3 {[%clk 0:02:57.7]} 9... cxd4 {[%clk
0:02:56.3]} 10. Nxd4 {[%clk 0:02:58.6]} 10... Ne5 {[%clk 0:02:55.9]} 11. Bb2
{[%clk 0:02:58.1]} 11... Nxd3 {[%clk 0:02:55.6]} 12. Qxd3 {[%clk 0:02:59]} 12...
a6 {[%clk 0:02:48.5]} 13. Nf5 {[%clk 0:02:54.7]} 13... Bb4 {[%clk 0:02:37.9]}
14. Rfd1 {[%clk 0:02:25.1]} 14... Re8 {[%clk 0:02:25.3]} 15. Nxg7 {[%clk
0:01:12.7]} 15... Kxg7 {[%clk 0:01:43.9]} 16. Nxd5 {[%clk 0:01:12.7]} 16... Be7
{[%clk 0:01:44.3]} 17. Nxf6 {[%clk 0:01:12.3]} 17... Bxf6 {[%clk 0:01:40.7]} 18.
Qxd8 {[%clk 0:01:10.6]} 18... Rxd8 {[%clk 0:01:36.3]} 19. Bxf6+ {[%clk
0:01:10.6]} 19... Kxf6 {[%clk 0:01:36]} 20. Rxd8 {[%clk 0:01:11.5]} 20... Ke7
{[%clk 0:01:30.6]} 21. Rh8 {[%clk 0:01:11.3]} 1-0

[Event "Late-Titled-Tuesday-Blitz-July-09-2024"]
[Site "Chess.com"]
[Date "2024.07.09"]
[Round "5"]
[White "RantomOpening"]
[Black "Charodej1"]
[Result "1-0"]
[WhiteElo "2582"]
[BlackElo "2392"]
[TimeControl "180+1"]
[EndTime "14:51:59 PDT"]
[Termination "RantomOpening won by resignation"]

1. d4 {[%clk 0:03:00.9]} 1... Nf6 {[%clk 0:02:56.8]} 2. c4 {[%clk 0:03:00.1]}
2... e6 {[%clk 0:02:55.3]} 3. Nc3 {[%clk 0:02:59.6]} 3... Bb4 {[%clk 0:02:52.5]}
4. g3 {[%clk 0:02:53.2]} 4... O-O {[%clk 0:02:48.2]} 5. Bg2 {[%clk 0:02:52.6]}
5... d5 {[%clk 0:02:44.7]} 6. Qb3 {[%clk 0:02:50.6]} 6... Nc6 {[%clk 0:02:24.1]}
7. Nf3 {[%clk 0:02:46.6]} 7... Ne4 {[%clk 0:02:12.8]} 8. O-O {[%clk 0:02:45]}
8... Bxc3 {[%clk 0:01:53]} 9. bxc3 {[%clk 0:02:44.3]} 9... Na5 {[%clk
0:01:51.4]} 10. Qc2 {[%clk 0:02:43.8]} 10... Nxc4 {[%clk 0:01:51.3]} 11. Bf4
{[%clk 0:02:42.5]} 11... c5 {[%clk 0:01:46.4]} 12. dxc5 {[%clk 0:02:39.7]} 12...
Nxc5 {[%clk 0:01:40.2]} 13. Rfd1 {[%clk 0:02:40.1]} 13... Qa5 {[%clk 0:01:35.2]}
14. Ne5 {[%clk 0:02:37.9]} 14... Nxe5 {[%clk 0:01:28.5]} 15. Bxe5 {[%clk
0:02:38.8]} 15... Qa4 {[%clk 0:01:04.4]} 16. Qxa4 {[%clk 0:02:20]} 16... Nxa4
{[%clk 0:01:04]} 17. e4 {[%clk 0:02:19.5]} 17... Nb6 {[%clk 0:00:59]} 18. Bd6
{[%clk 0:02:17.4]} 18... Rd8 {[%clk 0:00:56.9]} 19. Bc7 {[%clk 0:02:17.3]} 19...
Rd7 {[%clk 0:00:56.8]} 20. Bxb6 {[%clk 0:02:17.1]} 20... axb6 {[%clk 0:00:57.7]}
21. exd5 {[%clk 0:02:18]} 21... exd5 {[%clk 0:00:57.5]} 22. Bxd5 {[%clk
0:02:17.9]} 22... Ra5 {[%clk 0:00:53.6]} 23. Bxb7 {[%clk 0:02:13.8]} 1-0

[Event "Late-Titled-Tuesday-Blitz-July-09-2024"]
[Site "Chess.com"]
[Date "2024.07.09"]
[Round "5"]
[White "Ruprecht_der_Knecht"]
[Black "Mops_2004"]
[Result "0-1"]
[WhiteElo "2523"]
[BlackElo "2740"]
[TimeControl "180+1"]
[EndTime "14:52:08 PDT"]
[Termination "Mops_2004 won by resignation"]

1. c4 {[%clk 0:03:00.9]} 1... e6 {[%clk 0:02:58.8]} 2. Nf3 {[%clk 0:02:57.9]}
2... d5 {[%clk 0:02:58.9]} 3. d4 {[%clk 0:02:58]} 3... Nf6 {[%clk 0:02:58.6]} 4.
Bg5 {[%clk 0:02:58.4]} 4... Be7 {[%clk 0:02:56.9]} 5. e3 {[%clk 0:02:58.5]} 5...
h6 {[%clk 0:02:56.3]} 6. Bxf6 {[%clk 0:02:56.8]} 6... Bxf6 {[%clk 0:02:56.3]} 7.
Nc3 {[%clk 0:02:57.4]} 7... O-O {[%clk 0:02:54.6]} 8. h4 {[%clk 0:02:55.4]} 8...
c5 {[%clk 0:02:44.6]} 9. g4 {[%clk 0:02:51.4]} 9... cxd4 {[%clk 0:02:41]} 10.
exd4 {[%clk 0:02:50.8]} 10... g6 {[%clk 0:02:37.8]} 11. g5 {[%clk 0:02:48.9]}
11... hxg5 {[%clk 0:02:34.1]} 12. hxg5 {[%clk 0:02:49.2]} 12... Bxg5 {[%clk
0:02:29.5]} 13. Rg1 {[%clk 0:02:40.5]} 13... Bh6 {[%clk 0:02:22.9]} 14. Ne5
{[%clk 0:02:32.4]} 14... Nc6 {[%clk 0:01:55.4]} 15. Nxg6 {[%clk 0:02:13.2]}
15... fxg6 {[%clk 0:01:54.9]} 16. Rxg6+ {[%clk 0:02:14.1]} 16... Bg7 {[%clk
0:01:54.9]} 17. Qh5 {[%clk 0:02:14.3]} 17... Ne7 {[%clk 0:01:17.5]} 18. Bd3
{[%clk 0:02:12]} 18... Nxg6 {[%clk 0:01:12.8]} 19. Bxg6 {[%clk 0:02:12.9]} 19...
Rf4 {[%clk 0:00:56.5]} 20. O-O-O {[%clk 0:01:40.2]} 20... Qh4 {[%clk 0:00:46.1]}
21. Bf7+ {[%clk 0:01:40]} 21... Kf8 {[%clk 0:00:44.4]} 0-1

[Event "Late-Titled-Tuesday-Blitz-July-09-2024"]
[Site "Chess.com"]
[Date "2024.07.09"]
[Round "5"]
[White "vi_pranav"]
[Black "ArtemDyachuk"]
[Result "1-0"]
[WhiteElo "2990"]
[BlackElo "2688"]
[TimeControl "180+1"]
[EndTime "14:52:16 PDT"]
[Termination "vi_pranav won by resignation"]

1. Nf3 {[%clk 0:03:00.9]} 1... Nf6 {[%clk 0:02:56.2]} 2. g3 {[%clk 0:03:00.3]}
2... d5 {[%clk 0:02:55.8]} 3. Bg2 {[%clk 0:03:00.2]} 3... c6 {[%clk 0:02:55.7]}
4. O-O {[%clk 0:03:00.3]} 4... Bg4 {[%clk 0:02:56.1]} 5. d4 {[%clk 0:02:59.2]}
5... Nbd7 {[%clk 0:01:16.4]} 6. h3 {[%clk 0:02:57.2]} 6... Bxf3 {[%clk
0:01:15.1]} 7. exf3 {[%clk 0:02:56.3]} 7... e6 {[%clk 0:01:14.4]} 8. f4 {[%clk
0:02:56.4]} 8... Bd6 {[%clk 0:01:14]} 9. b3 {[%clk 0:02:56.4]} 9... h5 {[%clk
0:01:12.7]} 10. h4 {[%clk 0:02:52.7]} 10... Ng4 {[%clk 0:01:10.2]} 11. c4 {[%clk
0:02:51.9]} 11... Ndf6 {[%clk 0:01:05.3]} 12. Nc3 {[%clk 0:02:51.4]} 12... Qa5
{[%clk 0:00:59.9]} 13. Bd2 {[%clk 0:02:49.7]} 13... Bb4 {[%clk 0:00:58.7]} 14.
Qc2 {[%clk 0:02:44.5]} 14... O-O-O {[%clk 0:00:57.5]} 15. a3 {[%clk 0:02:37.1]}
15... Bxc3 {[%clk 0:00:55.1]} 16. Bxc3 {[%clk 0:02:38]} 16... Qc7 {[%clk
0:00:55.1]} 17. c5 {[%clk 0:02:32.3]} 17... Nh6 {[%clk 0:00:45.9]} 18. b4 {[%clk
0:02:30.2]} 18... Nf5 {[%clk 0:00:45.5]} 19. b5 {[%clk 0:02:30]} 19... cxb5
{[%clk 0:00:45]} 20. Rfb1 {[%clk 0:02:28.3]} 20... Qc6 {[%clk 0:00:42.1]} 21. a4
{[%clk 0:02:26.9]} 21... a6 {[%clk 0:00:39.9]} 22. axb5 {[%clk 0:02:26.7]} 22...
axb5 {[%clk 0:00:40]} 23. Bf1 {[%clk 0:02:26.9]} 23... Kb8 {[%clk 0:00:15.4]}
24. Bxb5 {[%clk 0:02:25.6]} 24... Qc8 {[%clk 0:00:13.6]} 25. Qa4 {[%clk
0:02:24.9]} 25... Ne4 {[%clk 0:00:04.8]} 26. Qa7+ {[%clk 0:02:24.3]} 1-0

[Event "Late-Titled-Tuesday-Blitz-July-09-2024"]
[Site "Chess.com"]
[Date "2024.07.09"]
[Round "5"]
[White "HPanesso"]
[Black "SandwichOSaumon"]
[Result "1-0"]
[WhiteElo "2536"]
[BlackElo "2297"]
[TimeControl "180+1"]
[EndTime "14:52:18 PDT"]
[Termination "HPanesso won on time"]

1. d4 {[%clk 0:02:58.9]} 1... d5 {[%clk 0:02:58.3]} 2. c4 {[%clk 0:02:58.3]}
2... c6 {[%clk 0:02:58.6]} 3. Nf3 {[%clk 0:02:57.3]} 3... Nf6 {[%clk 0:02:59.1]}
4. Nc3 {[%clk 0:02:54.4]} 4... e6 {[%clk 0:02:59.2]} 5. Bg5 {[%clk 0:02:52.8]}
5... Bd6 {[%clk 0:02:57.2]} 6. e3 {[%clk 0:02:51.6]} 6... Nbd7 {[%clk
0:02:56.4]} 7. Rc1 {[%clk 0:02:49.4]} 7... O-O {[%clk 0:02:56.3]} 8. Bd3 {[%clk
0:02:48.3]} 8... h6 {[%clk 0:02:52.5]} 9. Bh4 {[%clk 0:02:47.4]} 9... dxc4
{[%clk 0:02:47.5]} 10. Bxc4 {[%clk 0:02:45.5]} 10... Qc7 {[%clk 0:02:48]} 11.
O-O {[%clk 0:02:31]} 11... Nd5 {[%clk 0:02:46.2]} 12. Bxd5 {[%clk 0:02:15.5]}
12... exd5 {[%clk 0:02:47.1]} 13. Nxd5 {[%clk 0:02:14.3]} 13... Qb8 {[%clk
0:02:40.6]} 14. Ne7+ {[%clk 0:02:08.9]} 14... Bxe7 {[%clk 0:02:39.3]} 15. Bxe7
{[%clk 0:02:07.5]} 15... Re8 {[%clk 0:02:40.2]} 16. Bh4 {[%clk 0:02:05.5]} 16...
Nf8 {[%clk 0:02:37.3]} 17. Bg3 {[%clk 0:02:04.3]} 17... Qxg3 {[%clk 0:00:32]}
18. hxg3 {[%clk 0:02:01.5]} 1-0

[Event "Late-Titled-Tuesday-Blitz-July-09-2024"]
[Site "Chess.com"]
[Date "2024.07.09"]
[Round "5"]
[White "Narek_Ghimoyan"]
[Black "Fandorine"]
[Result "1-0"]
[WhiteElo "2523"]
[BlackElo "2917"]
[TimeControl "180+1"]
[EndTime "14:52:38 PDT"]
[Termination "Narek_Ghimoyan won by resignation"]

1. e4 {[%clk 0:03:00.9]} 1... c5 {[%clk 0:02:57]} 2. Nc3 {[%clk 0:03:01]} 2...
d6 {[%clk 0:02:56.9]} 3. f4 {[%clk 0:02:56]} 3... g6 {[%clk 0:02:56.2]} 4. Nf3
{[%clk 0:02:56.2]} 4... Bg7 {[%clk 0:02:56.8]} 5. Bc4 {[%clk 0:02:56.4]} 5...
Nc6 {[%clk 0:02:57.1]} 6. O-O {[%clk 0:02:56.6]} 6... e6 {[%clk 0:02:57.3]} 7.
d3 {[%clk 0:02:57]} 7... Nge7 {[%clk 0:02:57.8]} 8. Qe1 {[%clk 0:02:57.6]} 8...
O-O {[%clk 0:02:58.2]} 9. f5 {[%clk 0:02:57.3]} 9... exf5 {[%clk 0:02:32.5]} 10.
Qh4 {[%clk 0:02:57.1]} 10... h5 {[%clk 0:01:55.4]} 11. Bg5 {[%clk 0:02:56.5]}
11... fxe4 {[%clk 0:01:37.9]} 12. dxe4 {[%clk 0:02:32.9]} 12... Qe8 {[%clk
0:01:19.2]} 13. Nb5 {[%clk 0:02:23]} 13... Qd7 {[%clk 0:01:09.8]} 14. Rad1
{[%clk 0:02:22.6]} 14... d5 {[%clk 0:00:25.9]} 15. exd5 {[%clk 0:02:10]} 15...
Nf5 {[%clk 0:00:26]} 16. dxc6 {[%clk 0:01:58.1]} 16... Qxc6 {[%clk 0:00:21.3]}
17. Qf4 {[%clk 0:01:50.7]} 17... Be6 {[%clk 0:00:21.7]} 18. Nd6 {[%clk
0:01:28.6]} 18... Bxc4 {[%clk 0:00:16.3]} 19. Nxf5 {[%clk 0:01:28.2]} 19... Bxf1
{[%clk 0:00:14.7]} 20. Ne7+ {[%clk 0:01:28.2]} 1-0

[Event "Late-Titled-Tuesday-Blitz-July-09-2024"]
[Site "Chess.com"]
[Date "2024.07.09"]
[Round "5"]
[White "Proteuo"]
[Black "APOKALIPSA13"]
[Result "1-0"]
[WhiteElo "2438"]
[BlackElo "2105"]
[TimeControl "180+1"]
[EndTime "14:52:42 PDT"]
[Termination "Proteuo won by resignation"]

1. e4 {[%clk 0:03:00.9]} 1... e5 {[%clk 0:03:00.9]} 2. Nf3 {[%clk 0:03:00.3]}
2... d5 {[%clk 0:03:00.3]} 3. exd5 {[%clk 0:02:59.2]} 3... e4 {[%clk 0:03:01.2]}
4. Qe2 {[%clk 0:02:57.9]} 4... Nf6 {[%clk 0:03:01.6]} 5. d3 {[%clk 0:02:56]}
5... Qxd5 {[%clk 0:03:01]} 6. dxe4 {[%clk 0:02:53.4]} 6... Qxe4 {[%clk
0:03:00.3]} 7. Nc3 {[%clk 0:02:49.7]} 7... Bb4 {[%clk 0:02:58.4]} 8. Bd2 {[%clk
0:02:48.9]} 8... Qxe2+ {[%clk 0:02:50]} 9. Bxe2 {[%clk 0:02:47.9]} 9... O-O
{[%clk 0:02:48.9]} 10. O-O-O {[%clk 0:02:43.2]} 10... Nc6 {[%clk 0:02:45.2]} 11.
Nb5 {[%clk 0:02:40.1]} 11... Bd6 {[%clk 0:02:34.5]} 12. Nxd6 {[%clk 0:02:33.5]}
12... cxd6 {[%clk 0:02:35.4]} 13. Bf4 {[%clk 0:02:26.6]} 13... Ne4 {[%clk
0:02:34.6]} 14. Rhf1 {[%clk 0:02:24.7]} 14... Rd8 {[%clk 0:02:25.5]} 15. Nd4
{[%clk 0:02:17.9]} 15... Ne5 {[%clk 0:02:19.6]} 16. Nb5 {[%clk 0:02:15.1]} 16...
Be6 {[%clk 0:02:00.8]} 17. f3 {[%clk 0:02:08.5]} 17... Nf6 {[%clk 0:01:31.1]}
18. Nxd6 {[%clk 0:02:03]} 18... Ng6 {[%clk 0:01:30.2]} 19. Bg5 {[%clk
0:01:51.2]} 19... Bxa2 {[%clk 0:01:16.7]} 20. Bxf6 {[%clk 0:01:45.9]} 20... gxf6
{[%clk 0:01:15.8]} 21. b3 {[%clk 0:01:45.6]} 21... a5 {[%clk 0:01:14.1]} 22. Kb2
{[%clk 0:01:45.3]} 22... Nf4 {[%clk 0:01:03.2]} 23. Bc4 {[%clk 0:01:44.3]} 23...
a4 {[%clk 0:00:53]} 24. Nxf7 {[%clk 0:01:32.7]} 24... axb3 {[%clk 0:00:53.9]}
25. Rxd8+ {[%clk 0:01:26.3]} 25... Rxd8 {[%clk 0:00:51.4]} 26. Nxd8+ {[%clk
0:01:26]} 26... Kf8 {[%clk 0:00:51.3]} 27. cxb3 {[%clk 0:01:25.3]} 27... Nxg2
{[%clk 0:00:49.3]} 28. Kxa2 {[%clk 0:01:23.9]} 28... Ke7 {[%clk 0:00:50.2]} 29.
Nxb7 {[%clk 0:01:18]} 1-0

[Event "Late-Titled-Tuesday-Blitz-July-09-2024"]
[Site "Chess.com"]
[Date "2024.07.09"]
[Round "5"]
[White "betta2004"]
[Black "Chessbard1972"]
[Result "1-0"]
[WhiteElo "2515"]
[BlackElo "2277"]
[TimeControl "180+1"]
[EndTime "14:52:47 PDT"]
[Termination "betta2004 won by resignation"]

1. Nf3 {[%clk 0:03:00.9]} 1... c5 {[%clk 0:02:58.4]} 2. e3 {[%clk 0:03:01.8]}
2... d5 {[%clk 0:02:54.7]} 3. b3 {[%clk 0:03:02.7]} 3... Nc6 {[%clk 0:02:53.6]}
4. Bb2 {[%clk 0:03:03.1]} 4... Nf6 {[%clk 0:02:52.5]} 5. Bb5 {[%clk 0:03:02.7]}
5... Bd7 {[%clk 0:02:51.3]} 6. O-O {[%clk 0:03:02.4]} 6... e6 {[%clk 0:02:47.8]}
7. Bxc6 {[%clk 0:03:01.9]} 7... Bxc6 {[%clk 0:02:47.5]} 8. Ne5 {[%clk
0:03:02.8]} 8... Rc8 {[%clk 0:02:46.4]} 9. f4 {[%clk 0:03:03.2]} 9... Bd6 {[%clk
0:02:41.3]} 10. d3 {[%clk 0:03:03.3]} 10... O-O {[%clk 0:02:38.6]} 11. Nd2
{[%clk 0:03:03.7]} 11... b6 {[%clk 0:02:36]} 12. Qf3 {[%clk 0:03:00.5]} 12...
Bb7 {[%clk 0:02:35.5]} 13. Qh3 {[%clk 0:03:00.4]} 13... Nd7 {[%clk 0:02:30.1]}
14. Ndf3 {[%clk 0:02:58.1]} 14... Qe7 {[%clk 0:02:26.3]} 15. Rae1 {[%clk
0:02:30]} 15... f6 {[%clk 0:02:24.4]} 16. Nxd7 {[%clk 0:02:26.1]} 16... Qxd7
{[%clk 0:02:24.5]} 17. Qg4 {[%clk 0:02:17.6]} 17... Rce8 {[%clk 0:02:11.2]} 18.
Nd2 {[%clk 0:02:14.4]} 18... f5 {[%clk 0:02:01]} 19. Qh5 {[%clk 0:02:10.6]}
19... Qf7 {[%clk 0:01:59.2]} 20. Qh4 {[%clk 0:02:10.5]} 20... e5 {[%clk
0:01:54.2]} 21. Nf3 {[%clk 0:02:07.1]} 21... exf4 {[%clk 0:01:51.3]} 22. exf4
{[%clk 0:02:08]} 22... h6 {[%clk 0:01:42.7]} 23. Be5 {[%clk 0:02:06.2]} 23...
Be7 {[%clk 0:01:40.7]} 24. Qg3 {[%clk 0:02:00.3]} 24... d4 {[%clk 0:01:37.3]}
25. Nh4 {[%clk 0:01:56.4]} 25... Kh7 {[%clk 0:01:28]} 26. Nxf5 {[%clk
0:01:53.8]} 26... Rg8 {[%clk 0:01:00]} 27. Nxe7 {[%clk 0:01:29.9]} 27... Rxe7
{[%clk 0:00:57.3]} 28. f5 {[%clk 0:01:29.6]} 28... Qd5 {[%clk 0:00:33.5]} 29.
Qg6+ {[%clk 0:01:26]} 1-0

[Event "Late-Titled-Tuesday-Blitz-July-09-2024"]
[Site "Chess.com"]
[Date "2024.07.09"]
[Round "5"]
[White "GHANDEEVAM2003"]
[Black "DanielDardha2005"]
[Result "1-0"]
[WhiteElo "3184"]
[BlackElo "2908"]
[TimeControl "180+1"]
[EndTime "14:52:52 PDT"]
[Termination "GHANDEEVAM2003 won by resignation"]

1. e4 {[%clk 0:03:00.9]} 1... c5 {[%clk 0:02:59.5]} 2. Nf3 {[%clk 0:03:00.7]}
2... Nc6 {[%clk 0:02:59.8]} 3. Bb5 {[%clk 0:03:00.8]} 3... e6 {[%clk 0:02:59.9]}
4. O-O {[%clk 0:02:59.6]} 4... Nge7 {[%clk 0:02:59.3]} 5. Re1 {[%clk 0:02:59.9]}
5... a6 {[%clk 0:02:59.2]} 6. Bf1 {[%clk 0:02:59.5]} 6... d5 {[%clk 0:02:59.3]}
7. b3 {[%clk 0:02:56.8]} 7... d4 {[%clk 0:02:47]} 8. e5 {[%clk 0:02:55.4]} 8...
Ng6 {[%clk 0:02:42.7]} 9. g3 {[%clk 0:02:55.3]} 9... Qc7 {[%clk 0:02:39.6]} 10.
Qe2 {[%clk 0:02:55.2]} 10... Be7 {[%clk 0:02:36.6]} 11. h4 {[%clk 0:02:54.5]}
11... h5 {[%clk 0:02:36.5]} 12. d3 {[%clk 0:02:53.4]} 12... f6 {[%clk
0:02:35.2]} 13. exf6 {[%clk 0:02:51.8]} 13... gxf6 {[%clk 0:02:35.9]} 14. Nbd2
{[%clk 0:02:48.5]} 14... Kf7 {[%clk 0:02:31.9]} 15. Ne4 {[%clk 0:02:47.6]} 15...
e5 {[%clk 0:02:29.2]} 16. Nh2 {[%clk 0:02:41.1]} 16... Kg7 {[%clk 0:02:27.4]}
17. Bg2 {[%clk 0:02:38.9]} 17... Be6 {[%clk 0:02:25.9]} 18. Bf3 {[%clk
0:02:37.9]} 18... Bf7 {[%clk 0:02:02.1]} 19. Bxh5 {[%clk 0:02:33.3]} 19... Qd7
{[%clk 0:01:57.6]} 20. Bf3 {[%clk 0:02:17.9]} 20... Nxh4 {[%clk 0:01:41.8]} 21.
gxh4 {[%clk 0:02:18.8]} 21... Rxh4 {[%clk 0:01:42.2]} 22. Ng3 {[%clk 0:02:19.2]}
22... Rah8 {[%clk 0:01:39.9]} 23. Nhf1 {[%clk 0:02:06.4]} 23... f5 {[%clk
0:01:38.1]} 24. Bxc6 {[%clk 0:02:03.3]} 24... Qxc6 {[%clk 0:01:36]} 25. Nxf5+
{[%clk 0:01:58.9]} 25... Kf8 {[%clk 0:01:23.8]} 26. Nxh4 {[%clk 0:01:59.4]}
26... Bxh4 {[%clk 0:01:16.4]} 27. Qxe5 {[%clk 0:01:45.7]} 27... Bf6 {[%clk
0:00:55.1]} 28. Qb8+ {[%clk 0:01:45.4]} 28... Kg7 {[%clk 0:00:55.5]} 29. Qg3+
{[%clk 0:01:46.1]} 29... Kf8 {[%clk 0:00:51.9]} 30. Nh2 {[%clk 0:01:46.5]} 30...
Bh4 {[%clk 0:00:32.8]} 31. Qb8+ {[%clk 0:01:44.7]} 31... Kg7 {[%clk 0:00:31.5]}
32. Qe5+ {[%clk 0:01:45]} 32... Kh7 {[%clk 0:00:20.2]} 33. Qe4+ {[%clk
0:01:43.5]} 1-0